[Event "Late-Titled-Tuesday-Blitz-April-23-2024"]
[Site "Chess.com"]
[Date "2024.04.23"]
[Round "11"]
[White "Bryanl106"]
[Black "Evan_Attaker"]
[Result "0-1"]
[WhiteElo "2693"]
[BlackElo "2635"]
[TimeControl "180+1"]
[EndTime "16:05:52 PDT"]
[Termination "Evan_Attaker won by resignation"]

1. e4 {[%clk 0:03:00.9]} 1... c5 {[%clk 0:02:59.1]} 2. Nf3 {[%clk 0:03:00.9]}
2... d6 {[%clk 0:02:58.8]} 3. d4 {[%clk 0:03:01.3]} 3... cxd4 {[%clk 0:02:59.7]}
4. Nxd4 {[%clk 0:03:02.2]} 4... Nf6 {[%clk 0:02:59.9]} 5. Nc3 {[%clk 0:03:03.1]}
5... g6 {[%clk 0:03:00.6]} 6. Be3 {[%clk 0:03:03]} 6... Bg7 {[%clk 0:03:00.9]}
7. f3 {[%clk 0:03:03.6]} 7... O-O {[%clk 0:03:01.4]} 8. Qd2 {[%clk 0:03:04.3]}
8... Nc6 {[%clk 0:02:49.7]} 9. O-O-O {[%clk 0:03:04]} 9... d5 {[%clk 0:02:43.7]}
10. Qe1 {[%clk 0:03:02.8]} 10... e5 {[%clk 0:02:37.4]} 11. Nxc6 {[%clk
0:03:02.2]} 11... bxc6 {[%clk 0:02:38.3]} 12. exd5 {[%clk 0:03:02.4]} 12... Nxd5
{[%clk 0:02:36.4]} 13. Bc4 {[%clk 0:03:02.3]} 13... Be6 {[%clk 0:02:35.8]} 14.
Kb1 {[%clk 0:03:02.5]} 14... Re8 {[%clk 0:02:27.5]} 15. Ne4 {[%clk 0:03:00.8]}
15... f5 {[%clk 0:02:23]} 16. Ng5 {[%clk 0:02:54.9]} 16... Bc8 {[%clk
0:02:23.5]} 17. h4 {[%clk 0:02:55]} 17... h6 {[%clk 0:02:19.2]} 18. Ne4 {[%clk
0:02:51.5]} 18... Be6 {[%clk 0:02:19.5]} 19. Nc5 {[%clk 0:02:51.7]} 19... Bf7
{[%clk 0:02:18.3]} 20. g4 {[%clk 0:02:42.7]} 20... fxg4 {[%clk 0:02:09.7]} 21.
fxg4 {[%clk 0:02:43.6]} 21... e4 {[%clk 0:02:10]} 22. Nb3 {[%clk 0:02:40.9]}
22... Qe7 {[%clk 0:02:05.1]} 23. Bd4 {[%clk 0:02:40.5]} 23... e3 {[%clk
0:01:56.1]} 24. Bxg7 {[%clk 0:02:39.7]} 24... Kxg7 {[%clk 0:01:57]} 25. g5
{[%clk 0:02:37.7]} 25... h5 {[%clk 0:01:53.7]} 26. Bxd5 {[%clk 0:02:26.5]} 26...
Bxd5 {[%clk 0:01:54.6]} 27. Qc3+ {[%clk 0:02:25.5]} 27... Qe5 {[%clk 0:01:52.9]}
28. Rhe1 {[%clk 0:02:23.4]} 28... Qxc3 {[%clk 0:01:51.8]} 29. bxc3 {[%clk
0:02:24.3]} 29... Rab8 {[%clk 0:01:35.4]} 30. Rd3 {[%clk 0:02:07.4]} 30... a5
{[%clk 0:01:30.6]} 31. Kc1 {[%clk 0:02:06.4]} 31... a4 {[%clk 0:01:30.1]} 32.
Nc5 {[%clk 0:02:04.1]} 32... e2 {[%clk 0:01:24]} 33. Nxa4 {[%clk 0:02:01.3]}
33... Bxa2 {[%clk 0:01:15.9]} 34. Kd2 {[%clk 0:02:00.5]} 34... Rb7 {[%clk
0:01:10.8]} 35. Nc5 {[%clk 0:02:00.5]} 35... Rf7 {[%clk 0:01:09.5]} 36. Rd4
{[%clk 0:01:57.9]} 36... Rfe7 {[%clk 0:01:03.4]} 37. Ra4 {[%clk 0:01:50.6]}
37... Bd5 {[%clk 0:01:03.4]} 38. Rd4 {[%clk 0:01:48.6]} 38... Bf3 {[%clk
0:01:03.3]} 39. Rf4 {[%clk 0:01:47.3]} 39... Bg4 {[%clk 0:01:02.8]} 40. Nd3
{[%clk 0:01:44]} 40... Re3 {[%clk 0:00:55.6]} 41. Nb4 {[%clk 0:01:41.5]} 41...
c5 {[%clk 0:00:51.6]} 42. Nd5 {[%clk 0:01:38.6]} 42... Rh3 {[%clk 0:00:50.7]}
43. Nf6 {[%clk 0:01:34.5]} 43... Rd8+ {[%clk 0:00:50.9]} 44. Kc1 {[%clk
0:01:34.7]} 44... Rd1+ {[%clk 0:00:50.3]} 0-1

[Event "Late-Titled-Tuesday-Blitz-April-23-2024"]
[Site "Chess.com"]
[Date "2024.04.23"]
[Round "11"]
[White "Cambek64"]
[Black "RebecaJimnz"]
[Result "1-0"]
[WhiteElo "2528"]
[BlackElo "2316"]
[TimeControl "180+1"]
[EndTime "16:06:10 PDT"]
[Termination "Cambek64 won by resignation"]

1. e4 {[%clk 0:02:58.4]} 1... e5 {[%clk 0:02:53.6]} 2. Nf3 {[%clk 0:02:56.1]}
2... Nc6 {[%clk 0:02:53.1]} 3. Bb5 {[%clk 0:02:54.9]} 3... Nf6 {[%clk
0:02:51.7]} 4. d3 {[%clk 0:02:53.8]} 4... Bc5 {[%clk 0:02:50.8]} 5. O-O {[%clk
0:02:53.8]} 5... d6 {[%clk 0:02:46.7]} 6. c3 {[%clk 0:02:53.2]} 6... O-O {[%clk
0:02:43]} 7. h3 {[%clk 0:02:51.3]} 7... h6 {[%clk 0:02:42.3]} 8. Nbd2 {[%clk
0:02:50]} 8... a6 {[%clk 0:02:41.4]} 9. Bxc6 {[%clk 0:02:48.5]} 9... bxc6 {[%clk
0:02:40.5]} 10. d4 {[%clk 0:02:48.1]} 10... Ba7 {[%clk 0:02:29.2]} 11. dxe5
{[%clk 0:02:46.8]} 11... dxe5 {[%clk 0:02:23]} 12. Nxe5 {[%clk 0:02:42.9]} 12...
Qd6 {[%clk 0:02:05.9]} 13. Nec4 {[%clk 0:02:33.4]} 13... Qe6 {[%clk 0:01:55.3]}
14. Re1 {[%clk 0:02:26.6]} 14... a5 {[%clk 0:01:39.8]} 15. Qf3 {[%clk
0:02:21.8]} 15... a4 {[%clk 0:01:34.7]} 16. Ne3 {[%clk 0:02:15.9]} 16... Nh7
{[%clk 0:01:29.3]} 17. h4 {[%clk 0:02:08.8]} 17... Qf6 {[%clk 0:00:58.2]} 18.
Qxf6 {[%clk 0:01:53]} 18... Nxf6 {[%clk 0:00:59.1]} 19. f3 {[%clk 0:01:53.1]}
19... Nd7 {[%clk 0:00:46.4]} 20. Nf1 {[%clk 0:01:49.9]} 20... Ne5 {[%clk
0:00:43.2]} 21. Kh2 {[%clk 0:01:46.9]} 21... Ba6 {[%clk 0:00:39.7]} 22. Nf5
{[%clk 0:01:45.5]} 22... Nd3 {[%clk 0:00:35.1]} 23. Rd1 {[%clk 0:01:44.5]} 23...
Rad8 {[%clk 0:00:30.3]} 24. Ne7+ {[%clk 0:01:42.8]} 24... Kh7 {[%clk 0:00:28.8]}
25. Nxc6 {[%clk 0:01:43.1]} 25... Ra8 {[%clk 0:00:26.9]} 26. Nxa7 {[%clk
0:01:42]} 26... Rxa7 {[%clk 0:00:27]} 27. Be3 {[%clk 0:01:41.2]} 27... Rb7
{[%clk 0:00:26.5]} 28. b3 {[%clk 0:01:38.9]} 28... Nb2 {[%clk 0:00:18.1]} 29.
Rd2 {[%clk 0:01:36.4]} 29... Bxf1 {[%clk 0:00:18]} 30. Rxf1 {[%clk 0:01:33.3]}
30... a3 {[%clk 0:00:15.2]} 31. Bc5 {[%clk 0:01:33.3]} 31... Re8 {[%clk
0:00:11.5]} 32. Bxa3 {[%clk 0:01:32.5]} 1-0

[Event "Late-Titled-Tuesday-Blitz-April-23-2024"]
[Site "Chess.com"]
[Date "2024.04.23"]
[Round "11"]
[White "jinxy2009"]
[Black "Kratos031"]
[Result "0-1"]
[WhiteElo "2293"]
[BlackElo "2462"]
[TimeControl "180+1"]
[EndTime "16:06:13 PDT"]
[Termination "Kratos031 won by resignation"]

1. e4 {[%clk 0:03:00.9]} 1... c5 {[%clk 0:02:59.5]} 2. Nf3 {[%clk 0:03:00.9]}
2... Nc6 {[%clk 0:02:59.1]} 3. d4 {[%clk 0:03:01.2]} 3... cxd4 {[%clk
0:02:59.3]} 4. Nxd4 {[%clk 0:03:02.1]} 4... e5 {[%clk 0:02:59.6]} 5. Nb5 {[%clk
0:03:01.7]} 5... d6 {[%clk 0:02:59.9]} 6. c4 {[%clk 0:03:01.9]} 6... Be7 {[%clk
0:02:58.5]} 7. N5c3 {[%clk 0:03:02.4]} 7... Be6 {[%clk 0:02:57.9]} 8. Nd5 {[%clk
0:03:02.4]} 8... Nf6 {[%clk 0:02:58.3]} 9. Bd3 {[%clk 0:03:02.6]} 9... O-O
{[%clk 0:02:58.3]} 10. Nbc3 {[%clk 0:03:02.5]} 10... a6 {[%clk 0:02:56.9]} 11.
O-O {[%clk 0:03:02.8]} 11... Rc8 {[%clk 0:02:55]} 12. b3 {[%clk 0:03:03.1]}
12... Nd4 {[%clk 0:02:53.7]} 13. Be3 {[%clk 0:02:55.6]} 13... Bxd5 {[%clk
0:02:46.8]} 14. Nxd5 {[%clk 0:02:53.9]} 14... Nxd5 {[%clk 0:02:45.1]} 15. cxd5
{[%clk 0:02:53.2]} 15... Qa5 {[%clk 0:02:37.8]} 16. Bxd4 {[%clk 0:02:46.8]}
16... exd4 {[%clk 0:02:36.8]} 17. f4 {[%clk 0:02:47.1]} 17... Rc3 {[%clk
0:02:28.3]} 18. Rf3 {[%clk 0:02:43.5]} 18... Rfc8 {[%clk 0:02:23.5]} 19. Rh3
{[%clk 0:02:36.1]} 19... g6 {[%clk 0:02:13]} 20. f5 {[%clk 0:02:31.4]} 20... Qa3
{[%clk 0:02:06.7]} 21. Bc4 {[%clk 0:02:16]} 21... Bf6 {[%clk 0:01:37.5]} 22.
fxg6 {[%clk 0:02:06.8]} 22... hxg6 {[%clk 0:01:30.9]} 23. Qf1 {[%clk 0:02:02]}
23... Bg7 {[%clk 0:01:18.5]} 24. Rf3 {[%clk 0:01:47.7]} 24... Rxf3 {[%clk
0:01:12]} 25. Qxf3 {[%clk 0:01:48.6]} 25... b5 {[%clk 0:01:08.6]} 26. Rf1 {[%clk
0:01:47.8]} 26... Rc7 {[%clk 0:01:04.8]} 27. Bd3 {[%clk 0:01:45.9]} 27... Qxa2
{[%clk 0:00:58.2]} 28. b4 {[%clk 0:01:42.1]} 28... Qd2 {[%clk 0:00:54.3]} 29. h4
{[%clk 0:01:36.7]} 29... Qe3+ {[%clk 0:00:50.7]} 30. Qxe3 {[%clk 0:01:35.8]}
30... dxe3 {[%clk 0:00:51.6]} 31. Re1 {[%clk 0:01:35]} 31... Rc3 {[%clk
0:00:43.3]} 32. Bb1 {[%clk 0:01:31.2]} 32... Rb3 {[%clk 0:00:41.4]} 33. Kf1
{[%clk 0:01:30.1]} 33... Bd4 {[%clk 0:00:40.6]} 34. Ke2 {[%clk 0:01:29.7]} 34...
Rxb4 {[%clk 0:00:40]} 35. Kd3 {[%clk 0:01:29.6]} 35... Bc5 {[%clk 0:00:40]} 36.
Bc2 {[%clk 0:01:29.3]} 36... a5 {[%clk 0:00:38.3]} 37. Ra1 {[%clk 0:01:28.9]}
37... a4 {[%clk 0:00:38]} 38. Ke2 {[%clk 0:01:27.9]} 38... Rb2 {[%clk
0:00:36.9]} 39. Kd1 {[%clk 0:01:27.5]} 39... a3 {[%clk 0:00:36.1]} 40. Bd3
{[%clk 0:01:27.4]} 40... b4 {[%clk 0:00:35]} 41. Kc1 {[%clk 0:01:22.4]} 41...
Rxg2 {[%clk 0:00:33.8]} 0-1

[Event "Late-Titled-Tuesday-Blitz-April-23-2024"]
[Site "Chess.com"]
[Date "2024.04.23"]
[Round "11"]
[White "MyDream003"]
[Black "GoltsevDmitry2000"]
[Result "0-1"]
[WhiteElo "2815"]
[BlackElo "2760"]
[TimeControl "180+1"]
[EndTime "16:06:26 PDT"]
[Termination "GoltsevDmitry2000 won by checkmate"]

1. e4 {[%clk 0:02:58.2]} 1... e6 {[%clk 0:02:59.7]} 2. d4 {[%clk 0:02:58.2]}
2... d5 {[%clk 0:03:00.6]} 3. exd5 {[%clk 0:02:59.1]} 3... exd5 {[%clk
0:03:00.9]} 4. Nf3 {[%clk 0:03:00]} 4... Nf6 {[%clk 0:03:01.2]} 5. Bd3 {[%clk
0:03:00.9]} 5... c5 {[%clk 0:02:59.8]} 6. O-O {[%clk 0:03:01.8]} 6... Be7 {[%clk
0:02:59.7]} 7. dxc5 {[%clk 0:03:01.6]} 7... Bxc5 {[%clk 0:03:00.6]} 8. Re1+
{[%clk 0:03:02]} 8... Be6 {[%clk 0:02:58.9]} 9. Be3 {[%clk 0:03:01.5]} 9... Bb6
{[%clk 0:02:56.5]} 10. Nc3 {[%clk 0:03:00.5]} 10... O-O {[%clk 0:02:53.5]} 11.
Bxb6 {[%clk 0:02:55]} 11... Qxb6 {[%clk 0:02:52]} 12. Nd4 {[%clk 0:02:55.9]}
12... Bg4 {[%clk 0:02:44.8]} 13. Qd2 {[%clk 0:02:55.7]} 13... Nc6 {[%clk
0:02:40.8]} 14. Nxc6 {[%clk 0:02:55.2]} 14... bxc6 {[%clk 0:02:41.7]} 15. Na4
{[%clk 0:02:55.2]} 15... Qc7 {[%clk 0:02:36.8]} 16. b3 {[%clk 0:02:55.5]} 16...
Rfe8 {[%clk 0:02:34.8]} 17. h3 {[%clk 0:02:56.2]} 17... Bh5 {[%clk 0:02:32.6]}
18. Rxe8+ {[%clk 0:02:56.8]} 18... Rxe8 {[%clk 0:02:31.7]} 19. Re1 {[%clk
0:02:57.7]} 19... Rxe1+ {[%clk 0:02:29]} 20. Qxe1 {[%clk 0:02:58.6]} 20... Bg6
{[%clk 0:02:25.5]} 21. Qe3 {[%clk 0:02:55.5]} 21... Bxd3 {[%clk 0:02:15.3]} 22.
cxd3 {[%clk 0:02:56.4]} 22... h6 {[%clk 0:02:13.7]} 23. g3 {[%clk 0:02:45.6]}
23... Qa5 {[%clk 0:01:52.4]} 24. Kg2 {[%clk 0:02:44.8]} 24... Qc7 {[%clk
0:01:31]} 25. b4 {[%clk 0:02:31.3]} 25... Qd6 {[%clk 0:01:26.6]} 26. Qd4 {[%clk
0:02:18]} 26... Qe7 {[%clk 0:01:17.5]} 27. Nc3 {[%clk 0:02:12.2]} 27... Qe1
{[%clk 0:01:13.6]} 28. a4 {[%clk 0:02:08.7]} 28... Qd2 {[%clk 0:01:10.7]} 29. a5
{[%clk 0:01:56.7]} 29... a6 {[%clk 0:01:05]} 30. Na4 {[%clk 0:01:45.7]} 30...
Ne4 {[%clk 0:00:56.3]} 31. h4 {[%clk 0:01:29.3]} 31... Qd1 {[%clk 0:00:31.4]}
32. Nb6 {[%clk 0:01:17.4]} 32... Nd2 {[%clk 0:00:28.7]} 33. Kh3 {[%clk
0:01:17.7]} 33... h5 {[%clk 0:00:17.5]} 34. Qe3 {[%clk 0:01:15]} 34... Qh1#
{[%clk 0:00:16.9]} 0-1

[Event "Late-Titled-Tuesday-Blitz-April-23-2024"]
[Site "Chess.com"]
[Date "2024.04.23"]
[Round "11"]
[White "Cluke86"]
[Black "Boorchess"]
[Result "0-1"]
[WhiteElo "2357"]
[BlackElo "2530"]
[TimeControl "180+1"]
[EndTime "16:06:29 PDT"]
[Termination "Boorchess won by resignation"]

1. e4 {[%clk 0:03:00.9]} 1... c5 {[%clk 0:02:59.1]} 2. Nc3 {[%clk 0:02:59.7]}
2... a6 {[%clk 0:02:58.5]} 3. Nge2 {[%clk 0:02:59.1]} 3... d6 {[%clk 0:02:58]}
4. g3 {[%clk 0:02:58.6]} 4... g6 {[%clk 0:02:57.5]} 5. Bg2 {[%clk 0:02:58.2]}
5... Bg7 {[%clk 0:02:57.8]} 6. O-O {[%clk 0:02:58.1]} 6... Nc6 {[%clk
0:02:57.9]} 7. d3 {[%clk 0:02:58.1]} 7... e6 {[%clk 0:02:56.5]} 8. f4 {[%clk
0:02:55.5]} 8... Nge7 {[%clk 0:02:56.3]} 9. h3 {[%clk 0:02:55.3]} 9... Rb8
{[%clk 0:02:51.5]} 10. a4 {[%clk 0:02:53.9]} 10... b5 {[%clk 0:02:50.9]} 11.
axb5 {[%clk 0:02:54.4]} 11... axb5 {[%clk 0:02:51.2]} 12. g4 {[%clk 0:02:51.8]}
12... b4 {[%clk 0:02:51]} 13. Nb1 {[%clk 0:02:50.2]} 13... f5 {[%clk 0:02:32.4]}
14. Nd2 {[%clk 0:02:49.2]} 14... O-O {[%clk 0:02:28.9]} 15. Nf3 {[%clk 0:02:47]}
15... Qb6 {[%clk 0:02:08.6]} 16. Kh2 {[%clk 0:02:40.8]} 16... Nd4 {[%clk
0:01:56.2]} 17. Nexd4 {[%clk 0:02:17]} 17... cxd4 {[%clk 0:01:55]} 18. e5 {[%clk
0:02:13.3]} 18... Bb7 {[%clk 0:01:44.2]} 19. Qe2 {[%clk 0:02:08.4]} 19... fxg4
{[%clk 0:01:31.6]} 20. hxg4 {[%clk 0:02:07.3]} 20... Bxf3 {[%clk 0:01:30.4]} 21.
Bxf3 {[%clk 0:02:01.6]} 21... dxe5 {[%clk 0:01:28]} 22. fxe5 {[%clk 0:02:00.3]}
22... Nd5 {[%clk 0:00:56.6]} 23. Bxd5 {[%clk 0:01:42.4]} 23... Rxf1 {[%clk
0:00:53.8]} 24. Qxf1 {[%clk 0:01:32.6]} 24... Bxe5+ {[%clk 0:00:49.9]} 25. Bf4
{[%clk 0:01:31.6]} 25... Qd6 {[%clk 0:00:40.5]} 26. Bxe6+ {[%clk 0:01:26.1]}
26... Qxe6 {[%clk 0:00:39.1]} 27. Kg3 {[%clk 0:01:25.4]} 27... Rf8 {[%clk
0:00:36.8]} 28. Re1 {[%clk 0:00:52.3]} 28... Bxf4+ {[%clk 0:00:31.2]} 29. Kh3
{[%clk 0:00:51.2]} 29... Be3 {[%clk 0:00:29.4]} 30. Qg2 {[%clk 0:00:48]} 30...
h5 {[%clk 0:00:28.2]} 0-1

[Event "Late-Titled-Tuesday-Blitz-April-23-2024"]
[Site "Chess.com"]
[Date "2024.04.23"]
[Round "11"]
[White "Navyblue1"]
[Black "katharinareinecke"]
[Result "1/2-1/2"]
[WhiteElo "2252"]
[BlackElo "2058"]
[TimeControl "180+1"]
[EndTime "16:06:33 PDT"]
[Termination "Game drawn by repetition"]

1. d4 {[%clk 0:02:58]} 1... c6 {[%clk 0:03:00]} 2. c4 {[%clk 0:02:56.9]} 2... d5
{[%clk 0:03:00.2]} 3. cxd5 {[%clk 0:02:56.1]} 3... cxd5 {[%clk 0:02:59.7]} 4.
Nc3 {[%clk 0:02:56.8]} 4... Nc6 {[%clk 0:02:56.8]} 5. Bf4 {[%clk 0:02:56.7]}
5... Nf6 {[%clk 0:02:56.4]} 6. e3 {[%clk 0:02:55.5]} 6... a6 {[%clk 0:02:56.1]}
7. Bd3 {[%clk 0:02:53]} 7... e6 {[%clk 0:02:54.1]} 8. Rc1 {[%clk 0:02:52.6]}
8... Bd6 {[%clk 0:02:53.9]} 9. Bxd6 {[%clk 0:02:52.4]} 9... Qxd6 {[%clk
0:02:54.8]} 10. f4 {[%clk 0:02:52.7]} 10... O-O {[%clk 0:02:54.5]} 11. Nf3
{[%clk 0:02:52.2]} 11... b5 {[%clk 0:02:50.5]} 12. Ne5 {[%clk 0:02:50.5]} 12...
Bb7 {[%clk 0:02:47.4]} 13. O-O {[%clk 0:02:49]} 13... Na5 {[%clk 0:02:46.3]} 14.
Qe2 {[%clk 0:02:14.4]} 14... Nc4 {[%clk 0:02:43.5]} 15. Kh1 {[%clk 0:02:09.4]}
15... Ne4 {[%clk 0:02:41.5]} 16. Nxe4 {[%clk 0:02:07.8]} 16... dxe4 {[%clk
0:02:41]} 17. Bxc4 {[%clk 0:02:04.9]} 17... bxc4 {[%clk 0:02:39.5]} 18. Qxc4
{[%clk 0:01:56.5]} 18... Rac8 {[%clk 0:02:38.3]} 19. Qb3 {[%clk 0:01:50.5]}
19... Bd5 {[%clk 0:02:29.7]} 20. Qa4 {[%clk 0:01:47.4]} 20... f6 {[%clk
0:02:14.5]} 21. Nd7 {[%clk 0:01:20]} 21... Bc6 {[%clk 0:02:12]} 22. Rxc6 {[%clk
0:01:18.2]} 22... Qxc6 {[%clk 0:02:02]} 23. Qxc6 {[%clk 0:01:16.7]} 23... Rxc6
{[%clk 0:02:01.8]} 24. Nxf8 {[%clk 0:01:15.2]} 24... Kxf8 {[%clk 0:02:02.4]} 25.
Kg1 {[%clk 0:01:11.7]} 25... Rc2 {[%clk 0:02:01.8]} 26. Rb1 {[%clk 0:00:52.3]}
26... Re2 {[%clk 0:02:01.2]} 27. a4 {[%clk 0:00:49.8]} 27... Rxe3 {[%clk
0:01:59.9]} 28. b4 {[%clk 0:00:46]} 28... Ra3 {[%clk 0:01:59.6]} 29. b5 {[%clk
0:00:44.6]} 29... axb5 {[%clk 0:01:45.9]} 30. axb5 {[%clk 0:00:45.5]} 30... Ra8
{[%clk 0:01:43.3]} 31. b6 {[%clk 0:00:45.5]} 31... Rb8 {[%clk 0:01:43.7]} 32. g4
{[%clk 0:00:41.3]} 32... f5 {[%clk 0:01:42.1]} 33. gxf5 {[%clk 0:00:40.5]} 33...
exf5 {[%clk 0:01:42.3]} 34. Kf2 {[%clk 0:00:38.3]} 34... Ke7 {[%clk 0:01:41.7]}
35. Ke3 {[%clk 0:00:38.3]} 35... Kd6 {[%clk 0:01:41.5]} 36. Rb5 {[%clk
0:00:27.5]} 36... g6 {[%clk 0:01:40.9]} 37. Rb4 {[%clk 0:00:18.4]} 37... Kc6
{[%clk 0:01:39.4]} 38. b7 {[%clk 0:00:15.1]} 38... Rxb7 {[%clk 0:01:38.8]} 39.
Rxb7 {[%clk 0:00:15.2]} 39... Kxb7 {[%clk 0:01:39.2]} 40. d5 {[%clk 0:00:15.9]}
40... Kc7 {[%clk 0:01:39]} 41. Kd4 {[%clk 0:00:16.4]} 41... Kd6 {[%clk
0:01:38.9]} 42. h4 {[%clk 0:00:16.9]} 42... h6 {[%clk 0:01:34.8]} 43. Kc4 {[%clk
0:00:17.1]} 43... Kc7 {[%clk 0:01:30.6]} 44. Kd4 {[%clk 0:00:15.3]} 44... Kd6
{[%clk 0:01:30.9]} 45. Kc4 {[%clk 0:00:14.4]} 45... Kd7 {[%clk 0:01:31.2]} 46.
Kd4 {[%clk 0:00:14.7]} 46... Kd6 {[%clk 0:01:27.1]} 1/2-1/2

[Event "Late-Titled-Tuesday-Blitz-April-23-2024"]
[Site "Chess.com"]
[Date "2024.04.23"]
[Round "11"]
[White "Mandaloriana19"]
[Black "HipsterChess22"]
[Result "1-0"]
[WhiteElo "2369"]
[BlackElo "2199"]
[TimeControl "180+1"]
[EndTime "16:06:36 PDT"]
[Termination "Mandaloriana19 won on time"]

1. d4 {[%clk 0:02:52.5]} 1... d5 {[%clk 0:02:59.6]} 2. g3 {[%clk 0:02:50.6]}
2... e6 {[%clk 0:02:58.2]} 3. Bg2 {[%clk 0:02:50.3]} 3... f5 {[%clk 0:02:57.2]}
4. Nf3 {[%clk 0:02:51]} 4... Bd6 {[%clk 0:02:55.5]} 5. O-O {[%clk 0:02:51.6]}
5... Qe7 {[%clk 0:02:54.7]} 6. Ne1 {[%clk 0:02:51.7]} 6... Nf6 {[%clk
0:02:52.8]} 7. Nd3 {[%clk 0:02:52]} 7... O-O {[%clk 0:02:50]} 8. Nd2 {[%clk
0:02:52]} 8... b6 {[%clk 0:02:44.8]} 9. Nf3 {[%clk 0:02:52]} 9... Bb7 {[%clk
0:02:43.4]} 10. b3 {[%clk 0:02:51.1]} 10... c5 {[%clk 0:02:43]} 11. Bb2 {[%clk
0:02:49.5]} 11... Nbd7 {[%clk 0:02:42.4]} 12. e3 {[%clk 0:02:46.7]} 12... a5
{[%clk 0:02:38]} 13. Nf4 {[%clk 0:02:46.2]} 13... a4 {[%clk 0:02:34.3]} 14. Re1
{[%clk 0:02:44.3]} 14... a3 {[%clk 0:02:32.2]} 15. Bc1 {[%clk 0:02:38.8]} 15...
Ne4 {[%clk 0:02:30.4]} 16. Bd2 {[%clk 0:02:35.2]} 16... g5 {[%clk 0:02:22]} 17.
Nd3 {[%clk 0:02:33.7]} 17... c4 {[%clk 0:02:09.5]} 18. Nde5 {[%clk 0:02:25.2]}
18... c3 {[%clk 0:02:03.6]} 19. Bc1 {[%clk 0:02:25.1]} 19... g4 {[%clk
0:02:00.3]} 20. Nxd7 {[%clk 0:02:18.3]} 20... Qxd7 {[%clk 0:01:53.7]} 21. Ne5
{[%clk 0:02:16.9]} 21... Bxe5 {[%clk 0:01:51.9]} 22. dxe5 {[%clk 0:02:17.8]}
22... Qg7 {[%clk 0:01:40.5]} 23. Qd4 {[%clk 0:02:16.8]} 23... Qc7 {[%clk
0:01:24.4]} 24. Rb1 {[%clk 0:02:14.1]} 24... Qc5 {[%clk 0:01:19.5]} 25. Rd1
{[%clk 0:02:11.8]} 25... Ba6 {[%clk 0:01:12]} 26. Re1 {[%clk 0:01:56.2]} 26...
Bb5 {[%clk 0:01:00.3]} 27. h4 {[%clk 0:01:52.2]} 27... gxh3 {[%clk 0:00:56.1]}
28. Bxh3 {[%clk 0:01:49.2]} 28... Kf7 {[%clk 0:00:54.2]} 29. Qd1 {[%clk
0:01:43.7]} 29... Ke7 {[%clk 0:00:50.6]} 30. Qh5 {[%clk 0:01:43.5]} 30... Rf7
{[%clk 0:00:47.2]} 31. Qh4+ {[%clk 0:01:40.1]} 31... Kd7 {[%clk 0:00:45.6]} 32.
Bg2 {[%clk 0:01:40.5]} 32... Rg8 {[%clk 0:00:39.7]} 33. b4 {[%clk 0:01:34.3]}
33... Qc4 {[%clk 0:00:37.4]} 34. Bf1 {[%clk 0:01:33.1]} 34... Qxa2 {[%clk
0:00:34.9]} 35. Bxb5+ {[%clk 0:01:32.7]} 35... Kc7 {[%clk 0:00:33.9]} 36. Rb3
{[%clk 0:01:32.2]} 36... Nd2 {[%clk 0:00:21]} 37. Rxc3+ {[%clk 0:01:30.2]} 37...
Kb8 {[%clk 0:00:07.2]} 38. Bxd2 {[%clk 0:01:30]} 38... Qb2 {[%clk 0:00:03.2]}
39. Qd4 {[%clk 0:01:26.9]} 1-0

[Event "Late-Titled-Tuesday-Blitz-April-23-2024"]
[Site "Chess.com"]
[Date "2024.04.23"]
[Round "11"]
[White "artin10862"]
[Black "KNVB"]
[Result "0-1"]
[WhiteElo "2915"]
[BlackElo "2725"]
[TimeControl "180+1"]
[EndTime "16:07:02 PDT"]
[Termination "KNVB won by resignation"]

1. e4 {[%clk 0:03:00.9]} 1... b6 {[%clk 0:02:58.6]} 2. d4 {[%clk 0:02:58.4]}
2... Bb7 {[%clk 0:02:58.9]} 3. Nc3 {[%clk 0:02:58.7]} 3... e6 {[%clk 0:02:58.9]}
4. h4 {[%clk 0:02:58.5]} 4... Bb4 {[%clk 0:02:20.5]} 5. Ne2 {[%clk 0:02:55.4]}
5... Bxe4 {[%clk 0:02:00.3]} 6. a3 {[%clk 0:02:55.1]} 6... Bxc3+ {[%clk
0:02:00.9]} 7. Nxc3 {[%clk 0:02:56]} 7... Bb7 {[%clk 0:02:01.5]} 8. Qg4 {[%clk
0:02:56]} 8... Kf8 {[%clk 0:02:00.5]} 9. h5 {[%clk 0:02:44.3]} 9... h6 {[%clk
0:01:58]} 10. Bf4 {[%clk 0:02:38.7]} 10... d6 {[%clk 0:01:55.1]} 11. O-O-O
{[%clk 0:02:37.5]} 11... Nd7 {[%clk 0:01:47.3]} 12. f3 {[%clk 0:02:35.7]} 12...
Ngf6 {[%clk 0:01:40.1]} 13. Qg3 {[%clk 0:02:35.5]} 13... a6 {[%clk 0:01:31.6]}
14. Bd3 {[%clk 0:02:31.6]} 14... b5 {[%clk 0:01:30.8]} 15. Qf2 {[%clk
0:02:28.5]} 15... Nd5 {[%clk 0:01:28.6]} 16. Nxd5 {[%clk 0:02:25.5]} 16... Bxd5
{[%clk 0:01:29.5]} 17. g4 {[%clk 0:02:26.1]} 17... Nb6 {[%clk 0:01:04.4]} 18.
Rhg1 {[%clk 0:02:19.6]} 18... Ke8 {[%clk 0:00:15.4]} 19. g5 {[%clk 0:02:14.2]}
19... Kd7 {[%clk 0:00:15.8]} 20. b3 {[%clk 0:01:56.3]} 20... Kc6 {[%clk
0:00:04.8]} 21. Kb2 {[%clk 0:01:46.8]} 21... Kb7 {[%clk 0:00:05]} 22. gxh6
{[%clk 0:01:46.7]} 22... gxh6 {[%clk 0:00:05.3]} 23. Rc1 {[%clk 0:01:47.5]}
23... Qf6 {[%clk 0:00:05.6]} 24. Qe3 {[%clk 0:01:47.5]} 24... Bc6 {[%clk
0:00:02.7]} 25. Ka2 {[%clk 0:01:46.6]} 25... Nd5 {[%clk 0:00:02.8]} 26. Qf2
{[%clk 0:01:44.4]} 26... Qxf4 {[%clk 0:00:02.5]} 27. c4 {[%clk 0:01:44.8]} 27...
bxc4 {[%clk 0:00:01.9]} 28. bxc4 {[%clk 0:01:45.3]} 28... Nb6 {[%clk 0:00:02.6]}
29. Rb1 {[%clk 0:01:42]} 29... Ka7 {[%clk 0:00:02.4]} 30. d5 {[%clk 0:01:38.9]}
30... exd5 {[%clk 0:00:02.3]} 31. c5 {[%clk 0:01:39.3]} 31... d4 {[%clk
0:00:02.4]} 32. cxb6+ {[%clk 0:01:39.1]} 32... cxb6 {[%clk 0:00:03.3]} 33. Rgc1
{[%clk 0:01:34.4]} 33... Bd5+ {[%clk 0:00:03.5]} 34. Ka1 {[%clk 0:01:34.7]}
34... Rhc8 {[%clk 0:00:03.3]} 35. Qb2 {[%clk 0:01:34.2]} 35... b5 {[%clk
0:00:03]} 36. Qb4 {[%clk 0:01:32.4]} 36... Rxc1 {[%clk 0:00:02.1]} 37. Qa5
{[%clk 0:01:18.5]} 37... Rxb1+ {[%clk 0:00:02.6]} 38. Kxb1 {[%clk 0:01:19.4]}
38... Bb7 {[%clk 0:00:03]} 39. Qc7 {[%clk 0:01:16.7]} 39... Qe5 {[%clk
0:00:03.4]} 40. Be4 {[%clk 0:01:15.4]} 40... Rb8 {[%clk 0:00:04]} 41. Kb2 {[%clk
0:01:10.1]} 41... Qc5 {[%clk 0:00:03.7]} 42. Qxf7 {[%clk 0:01:10.3]} 42... d5
{[%clk 0:00:03.2]} 43. Bg6 {[%clk 0:01:09.4]} 43... Qc3+ {[%clk 0:00:03.6]} 44.
Ka2 {[%clk 0:01:09.7]} 44... d3 {[%clk 0:00:03.9]} 45. Qf4 {[%clk 0:01:09]}
45... Qc4+ {[%clk 0:00:03.8]} 0-1